[Event "*** Titled Tuesday 3|2 Blitz"]
[Site "Chess.com"]
[Date "2016.01.05"]
[Round "1"]
[White "Hikaru"]
[Black "zanbato17"]
[Result "1-0"]
[WhiteElo "2894"]
[BlackElo "2226"]
[TimeControl "180+2"]
[EndTime "17:01:36 PST"]
[Termination "Hikaru won by resignation"]

1. d4 {[%clk 0:03:01.9]} 1... d5 {[%clk 0:03:00.1]} 2. Bf4 {[%clk 0:03:02.8]}
2... Nf6 {[%clk 0:03:01]} 3. e3 {[%clk 0:03:03.5]} 3... c6 {[%clk 0:03:01.5]} 4.
c4 {[%clk 0:03:03.5]} 4... e6 {[%clk 0:03:01.7]} 5. Nc3 {[%clk 0:03:04.3]} 5...
Be7 {[%clk 0:03:03.1]} 6. Nf3 {[%clk 0:03:00.6]} 6... Nbd7 {[%clk 0:03:04.3]} 7.
Bd3 {[%clk 0:03:01.2]} 7... O-O {[%clk 0:03:05]} 8. O-O {[%clk 0:03:01.7]} 8...
b6 {[%clk 0:03:06.1]} 9. cxd5 {[%clk 0:03:01.7]} 9... Nxd5 {[%clk 0:03:02.4]}
10. Nxd5 {[%clk 0:02:59.7]} 10... cxd5 {[%clk 0:02:55.9]} 11. Rc1 {[%clk
0:02:59.1]} 11... Bb7 {[%clk 0:02:55.8]} 12. Bb5 {[%clk 0:03:00]} 12... Rc8
{[%clk 0:02:51.2]} 13. Qa4 {[%clk 0:03:00.3]} 13... Nf6 {[%clk 0:02:42]} 14.
Qxa7 {[%clk 0:02:59.5]} 14... Ba8 {[%clk 0:02:37.3]} 15. Rxc8 {[%clk 0:02:58.9]}
1-0

[Event "*** Titled Tuesday 3|2 Blitz"]
[Site "Chess.com"]
[Date "2016.01.05"]
[Round "1"]
[White "MMSANCHEZ"]
[Black "Silent_Terror"]
[Result "0-1"]
[WhiteElo "2307"]
[BlackElo "2278"]
[TimeControl "180+2"]
[EndTime "17:03:46 PST"]
[Termination "Silent_Terror won by checkmate"]

1. d4 {[%clk 0:03:01.9]} 1... e6 {[%clk 0:03:00.2]} 2. Nf3 {[%clk 0:03:02.9]}
2... Nf6 {[%clk 0:03:00.9]} 3. e3 {[%clk 0:03:02.7]} 3... b6 {[%clk 0:03:01]} 4.
Bd3 {[%clk 0:03:04.1]} 4... Bb7 {[%clk 0:03:02]} 5. O-O {[%clk 0:03:05.7]} 5...
d6 {[%clk 0:02:57]} 6. Nbd2 {[%clk 0:03:07.2]} 6... Nbd7 {[%clk 0:02:58.1]} 7.
e4 {[%clk 0:03:08.6]} 7... c5 {[%clk 0:02:59.2]} 8. c3 {[%clk 0:03:09.8]} 8...
cxd4 {[%clk 0:02:59.8]} 9. cxd4 {[%clk 0:03:10.9]} 9... Be7 {[%clk 0:03:01]} 10.
Re1 {[%clk 0:03:12]} 10... O-O {[%clk 0:03:02]} 11. b3 {[%clk 0:03:11.2]} 11...
Re8 {[%clk 0:03:02.1]} 12. Bb2 {[%clk 0:03:12.2]} 12... Nf8 {[%clk 0:02:59.4]}
13. Rc1 {[%clk 0:03:13.2]} 13... Rc8 {[%clk 0:02:59.6]} 14. Qe2 {[%clk
0:03:14.1]} 14... Rxc1 {[%clk 0:02:56.6]} 15. Rxc1 {[%clk 0:03:14]} 15... Qb8
{[%clk 0:02:58.2]} 16. g3 {[%clk 0:03:03]} 16... Rc8 {[%clk 0:02:54.2]} 17. e5
{[%clk 0:03:02.2]} 17... Rxc1+ {[%clk 0:02:54.1]} 18. Bxc1 {[%clk 0:03:02.7]}
18... dxe5 {[%clk 0:02:54.2]} 19. dxe5 {[%clk 0:03:02.5]} 19... Nd5 {[%clk
0:02:52.8]} 20. Ne4 {[%clk 0:03:03.7]} 20... Nb4 {[%clk 0:02:52.3]} 21. Bb1
{[%clk 0:03:03.3]} 21... Ng6 {[%clk 0:02:47.7]} 22. Bg5 {[%clk 0:02:49.8]} 22...
Bxg5 {[%clk 0:02:29.5]} 23. Nexg5 {[%clk 0:02:48.8]} 23... Qc7 {[%clk
0:02:24.9]} 24. Be4 {[%clk 0:02:35.4]} 24... Qc1+ {[%clk 0:02:17.2]} 25. Kg2
{[%clk 0:02:36.1]} 25... Ba6 {[%clk 0:02:18.6]} 26. Qd2 {[%clk 0:01:55.7]} 26...
Qf1# {[%clk 0:02:15.1]} 0-1

[Event "*** Titled Tuesday 3|2 Blitz"]
[Site "Chess.com"]
[Date "2016.01.05"]
[Round "1"]
[White "GianmarcoVaR"]
[Black "RobertoSuardi"]
[Result "1-0"]
[WhiteElo "2260"]
[BlackElo "1837"]
[TimeControl "180+2"]
[EndTime "17:03:51 PST"]
[Termination "GianmarcoVaR won by resignation"]

1. d4 {[%clk 0:03:01.9]} 1... Nf6 {[%clk 0:02:50.6]} 2. Nf3 {[%clk 0:03:03.4]}
2... c5 {[%clk 0:02:50.5]} 3. c4 {[%clk 0:03:05.3]} 3... cxd4 {[%clk 0:02:51.2]}
4. Nxd4 {[%clk 0:03:05]} 4... Nc6 {[%clk 0:02:52.7]} 5. Nc2 {[%clk 0:03:05.7]}
5... d6 {[%clk 0:02:53.5]} 6. Nc3 {[%clk 0:03:07]} 6... g6 {[%clk 0:02:55.1]} 7.
g3 {[%clk 0:03:07.1]} 7... Bg7 {[%clk 0:02:56.6]} 8. Bg2 {[%clk 0:03:08.7]} 8...
Bd7 {[%clk 0:02:58]} 9. O-O {[%clk 0:03:09.9]} 9... O-O {[%clk 0:02:59.5]} 10.
b3 {[%clk 0:03:10.2]} 10... Rc8 {[%clk 0:03:00.7]} 11. Bb2 {[%clk 0:03:11.4]}
11... a6 {[%clk 0:02:57.4]} 12. Rc1 {[%clk 0:03:12.8]} 12... h5 {[%clk
0:02:53.2]} 13. Nd5 {[%clk 0:03:04.5]} 13... Nxd5 {[%clk 0:02:50.6]} 14. Bxg7
{[%clk 0:03:02.1]} 14... Kxg7 {[%clk 0:02:51.6]} 15. cxd5 {[%clk 0:02:50.1]}
15... Ne5 {[%clk 0:02:50.2]} 16. Qd4 {[%clk 0:02:50.4]} 16... Kg8 {[%clk
0:02:46.5]} 17. h3 {[%clk 0:02:47.1]} 17... Qa5 {[%clk 0:02:40]} 18. f4 {[%clk
0:02:18.1]} 18... Qxa2 {[%clk 0:02:34.1]} 19. Ne3 {[%clk 0:02:18.6]} 19... Rxc1
{[%clk 0:02:32]} 20. Rxc1 {[%clk 0:02:18.3]} 20... Qxe2 {[%clk 0:02:15.4]} 21.
fxe5 {[%clk 0:02:18.4]} 21... dxe5 {[%clk 0:02:12]} 22. Qxe5 {[%clk 0:02:18]}
22... e6 {[%clk 0:02:10.4]} 23. Ng4 {[%clk 0:02:09.2]} 23... hxg4 {[%clk
0:02:03.2]} 24. Qxe2 {[%clk 0:02:05.3]} 1-0

[Event "*** Titled Tuesday 3|2 Blitz"]
[Site "Chess.com"]
[Date "2016.01.05"]
[Round "1"]
[White "Recombinant"]
[Black "Dlugy"]
[Result "0-1"]
[WhiteElo "2186"]
[BlackElo "2579"]
[TimeControl "180+2"]
[EndTime "17:04:03 PST"]
[Termination "Dlugy won by resignation"]

1. d4 {[%clk 0:03:01.9]} 1... Nf6 {[%clk 0:03:00.4]} 2. c4 {[%clk 0:03:02.1]}
2... g6 {[%clk 0:03:02]} 3. Nc3 {[%clk 0:03:01.3]} 3... Bg7 {[%clk 0:03:03.6]}
4. Nf3 {[%clk 0:03:01.5]} 4... d6 {[%clk 0:03:05.1]} 5. Bg5 {[%clk 0:03:02]}
5... O-O {[%clk 0:03:06.6]} 6. e3 {[%clk 0:03:03.3]} 6... c5 {[%clk 0:03:07.3]}
7. d5 {[%clk 0:03:04.1]} 7... a6 {[%clk 0:03:06.9]} 8. Be2 {[%clk 0:03:02.4]}
8... b5 {[%clk 0:03:07.1]} 9. cxb5 {[%clk 0:03:02.7]} 9... axb5 {[%clk
0:03:08.4]} 10. Bxb5 {[%clk 0:03:03.6]} 10... Ba6 {[%clk 0:03:09.7]} 11. Bxa6
{[%clk 0:03:02.2]} 11... Nxa6 {[%clk 0:03:10.4]} 12. O-O {[%clk 0:03:02.9]}
12... Qa5 {[%clk 0:03:11.4]} 13. Qc2 {[%clk 0:03:00.5]} 13... Rfb8 {[%clk
0:03:07.8]} 14. Nd2 {[%clk 0:02:51.8]} 14... Nb4 {[%clk 0:03:07.7]} 15. Qb1
{[%clk 0:02:45.5]} 15... Nbxd5 {[%clk 0:03:07.6]} 16. Nxd5 {[%clk 0:02:40.2]}
16... Nxd5 {[%clk 0:03:08.6]} 17. Nc4 {[%clk 0:02:40.9]} 17... Qa6 {[%clk
0:03:03.7]} 18. Qc2 {[%clk 0:02:32.3]} 18... h6 {[%clk 0:02:55.1]} 19. Bh4
{[%clk 0:02:31.4]} 19... Rb4 {[%clk 0:02:47.5]} 20. Rfc1 {[%clk 0:02:25.8]}
20... Qb7 {[%clk 0:02:43.1]} 21. Rcb1 {[%clk 0:02:04.4]} 21... Nb6 {[%clk
0:02:30.3]} 22. Nxb6 {[%clk 0:02:01]} 22... Rxb6 {[%clk 0:02:30.9]} 23. a4
{[%clk 0:01:56.2]} 23... g5 {[%clk 0:02:26.5]} 24. a5 {[%clk 0:01:50.1]} 24...
Rxb2 {[%clk 0:02:24.1]} 25. Rxb2 {[%clk 0:01:51]} 25... Qxb2 {[%clk 0:02:24.9]}
26. Qxb2 {[%clk 0:01:51.3]} 26... Bxb2 {[%clk 0:02:25.4]} 27. Rb1 {[%clk
0:01:47.2]} 27... Rxa5 {[%clk 0:02:23.3]} 28. Bg3 {[%clk 0:01:44.7]} 28... c4
{[%clk 0:02:22.7]} 0-1

[Event "*** Titled Tuesday 3|2 Blitz"]
[Site "Chess.com"]
[Date "2016.01.05"]
[Round "1"]
[White "Aygehovit1992"]
[Black "Satoshi95"]
[Result "1-0"]
[WhiteElo "2389"]
[BlackElo "2103"]
[TimeControl "180+2"]
[EndTime "17:05:13 PST"]
[Termination "Aygehovit1992 won by resignation"]

1. e4 {[%clk 0:02:10.2]} 1... d5 {[%clk 0:03:00.2]} 2. exd5 {[%clk 0:02:09]}
2... Nf6 {[%clk 0:03:00.4]} 3. Nc3 {[%clk 0:02:10]} 3... Nxd5 {[%clk 0:03:00.9]}
4. Nf3 {[%clk 0:02:11.7]} 4... c5 {[%clk 0:02:57.9]} 5. Bc4 {[%clk 0:02:12.1]}
5... e6 {[%clk 0:02:56.7]} 6. O-O {[%clk 0:02:12.2]} 6... Be7 {[%clk 0:02:55.5]}
7. d4 {[%clk 0:02:12.5]} 7... Nxc3 {[%clk 0:02:53.4]} 8. bxc3 {[%clk 0:02:13.1]}
8... Nc6 {[%clk 0:02:54.2]} 9. Re1 {[%clk 0:02:08]} 9... O-O {[%clk 0:02:53]}
10. Be3 {[%clk 0:02:06.2]} 10... Bf6 {[%clk 0:02:40]} 11. Rb1 {[%clk 0:02:00.2]}
11... a6 {[%clk 0:02:37.9]} 12. a4 {[%clk 0:01:59.3]} 12... Qa5 {[%clk
0:02:34.4]} 13. Qd3 {[%clk 0:01:53.8]} 13... Bd7 {[%clk 0:02:04]} 14. Rxb7
{[%clk 0:01:46.8]} 14... Rad8 {[%clk 0:02:01.2]} 15. Ng5 {[%clk 0:01:23.4]}
15... g6 {[%clk 0:01:17.1]} 16. Ne4 {[%clk 0:01:23.1]} 16... Be7 {[%clk
0:01:12]} 17. Bh6 {[%clk 0:01:19.1]} 17... Ne5 {[%clk 0:01:06.2]} 18. dxe5
{[%clk 0:01:12.2]} 1-0

[Event "*** Titled Tuesday 3|2 Blitz"]
[Site "Chess.com"]
[Date "2016.01.05"]
[Round "1"]
[White "StellarChessPro"]
[Black "Piccadilly123"]
[Result "1-0"]
[WhiteElo "2233"]
[BlackElo "1729"]
[TimeControl "180+2"]
[EndTime "17:05:13 PST"]
[Termination "StellarChessPro won by resignation"]

1. d4 {[%clk 0:03:00.5]} 1... d5 {[%clk 0:03:00.5]} 2. Nf3 {[%clk 0:03:01.2]}
2... Nf6 {[%clk 0:03:00.6]} 3. e3 {[%clk 0:03:01.9]} 3... Bf5 {[%clk 0:03:00.2]}
4. Bd3 {[%clk 0:02:57.4]} 4... Bxd3 {[%clk 0:02:59.4]} 5. Qxd3 {[%clk
0:02:58.1]} 5... e6 {[%clk 0:03:00.5]} 6. Ne5 {[%clk 0:02:58.9]} 6... Nbd7
{[%clk 0:03:00.7]} 7. f4 {[%clk 0:02:59.4]} 7... Bd6 {[%clk 0:03:01.1]} 8. O-O
{[%clk 0:03:00.1]} 8... Ne4 {[%clk 0:03:01]} 9. Nd2 {[%clk 0:03:00.7]} 9... Nxd2
{[%clk 0:02:59.1]} 10. Bxd2 {[%clk 0:03:01.2]} 10... f6 {[%clk 0:02:59.8]} 11.
Nxd7 {[%clk 0:03:01]} 11... Qxd7 {[%clk 0:03:00.4]} 12. c4 {[%clk 0:03:02.9]}
12... c6 {[%clk 0:03:00.9]} 13. c5 {[%clk 0:03:03.1]} 13... Bc7 {[%clk
0:03:01.7]} 14. b4 {[%clk 0:03:04.6]} 14... f5 {[%clk 0:03:01]} 15. a4 {[%clk
0:03:05.6]} 15... a6 {[%clk 0:03:00.9]} 16. b5 {[%clk 0:03:04.6]} 16... axb5
{[%clk 0:02:46.9]} 17. axb5 {[%clk 0:03:05.1]} 17... Rxa1 {[%clk 0:02:46.2]} 18.
Rxa1 {[%clk 0:03:07]} 18... cxb5 {[%clk 0:02:44.8]} 19. Ra8+ {[%clk 0:02:43.4]}
19... Bd8 {[%clk 0:02:45.1]} 20. Ba5 {[%clk 0:02:44.5]} 20... Ke7 {[%clk
0:02:42.9]} 21. Bxd8+ {[%clk 0:02:40.6]} 21... Rxd8 {[%clk 0:02:43.2]} 22. Ra5
{[%clk 0:02:28]} 22... b4 {[%clk 0:02:38.2]} 23. Rb5 {[%clk 0:02:25.9]} 23...
Ra8 {[%clk 0:02:37.8]} 24. Rxb4 {[%clk 0:02:23.8]} 24... Ra6 {[%clk 0:02:33.2]}
25. Qb1 {[%clk 0:02:23.1]} 25... Ra7 {[%clk 0:02:31.7]} 26. Rb6 {[%clk
0:02:21.4]} 26... Kf6 {[%clk 0:02:30.2]} 27. h3 {[%clk 0:02:20.4]} 27... h6
{[%clk 0:02:30.3]} 28. Kh2 {[%clk 0:02:20.1]} 28... Kf7 {[%clk 0:02:26]} 29. Qb4
{[%clk 0:02:15.6]} 29... Kf6 {[%clk 0:02:25]} 30. Rd6 {[%clk 0:02:09.1]} 30...
Qc7 {[%clk 0:02:20.2]} 31. Qb5 {[%clk 0:02:07]} 31... Ke7 {[%clk 0:02:16.5]} 32.
Rb6 {[%clk 0:02:00.8]} 32... Qd7 {[%clk 0:02:03.8]} 33. c6 {[%clk 0:01:58.6]}
33... bxc6 {[%clk 0:02:03.9]} 34. Rxc6 {[%clk 0:01:59.1]} 34... Rc7 {[%clk
0:02:03.1]} 35. Qc5+ {[%clk 0:01:58.8]} 35... Kd8 {[%clk 0:01:57.5]} 36. Qf8+
{[%clk 0:01:47.5]} 36... Qe8 {[%clk 0:01:57.3]} 37. Qxe8+ {[%clk 0:01:48.6]}
37... Kxe8 {[%clk 0:01:58.3]} 38. Rxc7 {[%clk 0:01:49.9]} 1-0

[Event "*** Titled Tuesday 3|2 Blitz"]
[Site "Chess.com"]
[Date "2016.01.05"]
[Round "1"]
[White "Fibrinogen"]
[Black "AlexanderL"]
[Result "0-1"]
[WhiteElo "2188"]
[BlackElo "2590"]
[TimeControl "180+2"]
[EndTime "17:05:48 PST"]
[Termination "AlexanderL won by resignation"]

1. e4 {[%clk 0:03:01]} 1... e6 {[%clk 0:03:00.6]} 2. d4 {[%clk 0:03:01.5]} 2...
d5 {[%clk 0:03:01.2]} 3. Nd2 {[%clk 0:03:02.1]} 3... c5 {[%clk 0:03:01.7]} 4.
exd5 {[%clk 0:02:55]} 4... Qxd5 {[%clk 0:03:02.3]} 5. Ngf3 {[%clk 0:02:55.2]}
5... cxd4 {[%clk 0:03:02.7]} 6. Bc4 {[%clk 0:02:55.3]} 6... Qd6 {[%clk
0:03:03.8]} 7. Nb3 {[%clk 0:02:50]} 7... Qb4+ {[%clk 0:03:04]} 8. Nfd2 {[%clk
0:01:44.7]} 8... Nc6 {[%clk 0:03:03.2]} 9. O-O {[%clk 0:01:44.6]} 9... Nf6
{[%clk 0:03:03.8]} 10. a3 {[%clk 0:01:42.7]} 10... Qd6 {[%clk 0:03:04.1]} 11.
Nf3 {[%clk 0:01:43.8]} 11... Be7 {[%clk 0:02:58.6]} 12. Nbxd4 {[%clk 0:01:36.5]}
12... Nxd4 {[%clk 0:02:59.5]} 13. Qxd4 {[%clk 0:01:38.4]} 13... Qxd4 {[%clk
0:03:00]} 14. Nxd4 {[%clk 0:01:39.5]} 14... O-O {[%clk 0:03:01.9]} 15. b3 {[%clk
0:01:31.5]} 15... a6 {[%clk 0:02:58.2]} 16. a4 {[%clk 0:01:30.3]} 16... Ne4
{[%clk 0:02:47.2]} 17. Re1 {[%clk 0:01:24.5]} 17... Nd6 {[%clk 0:02:47.2]} 18.
Bd3 {[%clk 0:01:23.5]} 18... Bf6 {[%clk 0:02:46.4]} 19. Bb2 {[%clk 0:01:23.9]}
19... Bd7 {[%clk 0:02:32.3]} 20. Rab1 {[%clk 0:01:19.3]} 20... Rfd8 {[%clk
0:02:29.8]} 21. Nf3 {[%clk 0:01:17.7]} 21... Bxb2 {[%clk 0:02:30]} 22. Rxb2
{[%clk 0:01:19.2]} 22... b5 {[%clk 0:02:29.5]} 23. axb5 {[%clk 0:01:16.6]} 23...
axb5 {[%clk 0:02:30.6]} 24. Ne5 {[%clk 0:01:17.6]} 24... Be8 {[%clk 0:02:30.5]}
25. Rbb1 {[%clk 0:01:18.2]} 25... f6 {[%clk 0:02:25.6]} 26. Nf3 {[%clk
0:01:15.8]} 26... e5 {[%clk 0:02:26]} 27. Rbd1 {[%clk 0:01:13.4]} 27... Bc6
{[%clk 0:02:08.8]} 28. Nd2 {[%clk 0:01:07.9]} 28... b4 {[%clk 0:02:09.5]} 29. f3
{[%clk 0:01:03]} 29... Kf7 {[%clk 0:02:09.3]} 30. Kf2 {[%clk 0:01:01.8]} 30...
g6 {[%clk 0:02:10]} 31. Nc4 {[%clk 0:01:01]} 31... Nxc4 {[%clk 0:02:10.4]} 32.
Bxc4+ {[%clk 0:01:01]} 32... Ke7 {[%clk 0:02:11.6]} 33. Ke3 {[%clk 0:00:59.4]}
33... Rxd1 {[%clk 0:02:11.9]} 34. Rxd1 {[%clk 0:00:59]} 34... Ra5 {[%clk
0:02:11.9]} 35. g3 {[%clk 0:00:56.9]} 35... Ra2 {[%clk 0:02:01.8]} 36. Rd2
{[%clk 0:00:56.1]} 36... Ra1 {[%clk 0:02:00.6]} 0-1

[Event "*** Titled Tuesday 3|2 Blitz"]
[Site "Chess.com"]
[Date "2016.01.05"]
[Round "1"]
[White "Malev212"]
[Black "chesstatour"]
[Result "1-0"]
[WhiteElo "2294"]
[BlackElo "1912"]
[TimeControl "180+2"]
[EndTime "17:06:47 PST"]
[Termination "Malev212 won on time"]

1. Nf3 {[%clk 0:02:56]} 1... g6 {[%clk 0:02:58.2]} 2. d4 {[%clk 0:02:55.5]} 2...
Bg7 {[%clk 0:02:59.8]} 3. Bg5 {[%clk 0:02:53.9]} 3... c5 {[%clk 0:02:59.3]} 4.
e3 {[%clk 0:02:53.8]} 4... Qb6 {[%clk 0:02:54.9]} 5. Nc3 {[%clk 0:02:53.9]} 5...
Nf6 {[%clk 0:02:53.8]} 6. Qd2 {[%clk 0:02:39.3]} 6... cxd4 {[%clk 0:02:48.3]} 7.
exd4 {[%clk 0:02:38.8]} 7... O-O {[%clk 0:02:38.7]} 8. b3 {[%clk 0:02:37.5]}
8... e6 {[%clk 0:02:19.6]} 9. Be2 {[%clk 0:02:17.8]} 9... d5 {[%clk 0:02:11.2]}
10. Bh6 {[%clk 0:02:15]} 10... Ne4 {[%clk 0:01:57.8]} 11. Nxe4 {[%clk
0:02:14.7]} 11... dxe4 {[%clk 0:01:57.5]} 12. Bxg7 {[%clk 0:02:12.6]} 12... Kxg7
{[%clk 0:01:32.9]} 13. Ng5 {[%clk 0:02:04.5]} 13... Nc6 {[%clk 0:01:17.7]} 14.
c3 {[%clk 0:01:58.7]} 14... f5 {[%clk 0:01:17.4]} 15. h4 {[%clk 0:01:58.2]}
15... h6 {[%clk 0:01:11.5]} 16. h5 {[%clk 0:01:52.5]} 16... Qd8 {[%clk 0:00:28]}
17. Nh3 {[%clk 0:01:43.1]} 17... g5 {[%clk 0:00:27.8]} 18. f3 {[%clk 0:01:39.3]}
18... exf3 {[%clk 0:00:27.6]} 19. gxf3 {[%clk 0:01:39.1]} 19... Qf6 {[%clk
0:00:11.2]} 20. f4 {[%clk 0:01:32.8]} 20... g4 {[%clk 0:00:11.7]} 21. Nf2 {[%clk
0:01:32.7]} 21... Bd7 {[%clk 0:00:12.2]} 22. O-O-O {[%clk 0:01:32.2]} 22... Ne7
{[%clk 0:00:12]} 23. Nd3 {[%clk 0:01:29.3]} 23... Nc6 {[%clk 0:00:12]} 24. Rhg1
{[%clk 0:01:27.2]} 24... Rae8 {[%clk 0:00:09.4]} 25. Bf3 {[%clk 0:01:26.1]}
25... b6 {[%clk 0:00:05.9]} 26. Ne5 {[%clk 0:01:23.3]} 26... Nb8 {[%clk
0:00:04.4]} 27. Qd3 {[%clk 0:01:17.2]} 1-0

[Event "*** Titled Tuesday 3|2 Blitz"]
[Site "Chess.com"]
[Date "2016.01.05"]
[Round "1"]
[White "chess4life23"]
[Black "Gabrielian_Artur"]
[Result "0-1"]
[WhiteElo "2147"]
[BlackElo "2495"]
[TimeControl "180+2"]
[EndTime "17:06:59 PST"]
[Termination "Gabrielian_Artur won by resignation"]

1. d4 {[%clk 0:02:57.8]} 1... Nf6 {[%clk 0:02:55.9]} 2. c4 {[%clk 0:02:57.7]}
2... c5 {[%clk 0:02:56.6]} 3. d5 {[%clk 0:02:57.3]} 3... e6 {[%clk 0:02:57.9]}
4. Nc3 {[%clk 0:02:56.2]} 4... exd5 {[%clk 0:02:59.2]} 5. cxd5 {[%clk
0:02:57.1]} 5... d6 {[%clk 0:03:00.7]} 6. Nf3 {[%clk 0:02:57]} 6... g6 {[%clk
0:03:02]} 7. Nd2 {[%clk 0:02:56.6]} 7... Nbd7 {[%clk 0:03:02.3]} 8. e4 {[%clk
0:02:56.7]} 8... Bg7 {[%clk 0:03:03.4]} 9. Be2 {[%clk 0:02:55.2]} 9... O-O
{[%clk 0:03:04.2]} 10. O-O {[%clk 0:02:54.6]} 10... Re8 {[%clk 0:03:05.1]} 11.
Re1 {[%clk 0:02:50.9]} 11... a6 {[%clk 0:03:05]} 12. a4 {[%clk 0:02:50]} 12...
Ne5 {[%clk 0:03:04.2]} 13. h3 {[%clk 0:02:43.2]} 13... g5 {[%clk 0:03:05.1]} 14.
Nc4 {[%clk 0:02:20.1]} 14... Nxc4 {[%clk 0:03:04.1]} 15. Bxc4 {[%clk 0:02:22]}
15... Nd7 {[%clk 0:03:05.1]} 16. Be3 {[%clk 0:02:15.1]} 16... Ne5 {[%clk
0:03:05.6]} 17. Be2 {[%clk 0:02:03.7]} 17... h6 {[%clk 0:03:06.7]} 18. Qc2
{[%clk 0:01:57.4]} 18... Rf8 {[%clk 0:03:04.9]} 19. f4 {[%clk 0:01:37.3]} 19...
gxf4 {[%clk 0:03:05.3]} 20. Bxf4 {[%clk 0:01:39.2]} 20... f5 {[%clk 0:03:06.4]}
21. Qd2 {[%clk 0:01:38.7]} 21... Qh4 {[%clk 0:03:04.5]} 22. Kh2 {[%clk
0:01:19.9]} 22... Bd7 {[%clk 0:02:06.1]} 23. Bg3 {[%clk 0:01:04.6]} 23... Qg5
{[%clk 0:02:06.5]} 24. Bf4 {[%clk 0:01:01.3]} 24... Qg6 {[%clk 0:02:06.1]} 25.
Bd1 {[%clk 0:00:51.7]} 25... Rae8 {[%clk 0:02:04.7]} 26. Bc2 {[%clk 0:00:52]}
26... Qh5 {[%clk 0:01:59.5]} 27. Rf1 {[%clk 0:00:48]} 27... fxe4 {[%clk
0:01:54.1]} 28. Nxe4 {[%clk 0:00:45.1]} 28... Nc4 {[%clk 0:01:46]} 29. Qd1
{[%clk 0:00:21.4]} 29... Qxd1 {[%clk 0:01:45.5]} 30. Raxd1 {[%clk 0:00:23.3]}
30... Bf5 {[%clk 0:01:30.4]} 31. b3 {[%clk 0:00:21.5]} 31... Bxe4 {[%clk
0:01:29]} 32. Bxe4 {[%clk 0:00:21.8]} 32... Rxe4 {[%clk 0:01:29.3]} 33. bxc4
{[%clk 0:00:22.7]} 33... Rexf4 {[%clk 0:01:30.4]} 0-1

[Event "*** Titled Tuesday 3|2 Blitz"]
[Site "Chess.com"]
[Date "2016.01.05"]
[Round "1"]
[White "Quiet_Desperation"]
[Black "Iball95"]
[Result "0-1"]
[WhiteElo "2120"]
[BlackElo "2394"]
[TimeControl "180+2"]
[EndTime "17:07:02 PST"]
[Termination "Iball95 won by resignation"]

1. e4 {[%clk 0:03:01.5]} 1... e5 {[%clk 0:02:39]} 2. Nf3 {[%clk 0:02:52.7]} 2...
Nc6 {[%clk 0:02:37.8]} 3. Bb5 {[%clk 0:02:53.5]} 3... Nf6 {[%clk 0:02:38]} 4. d3
{[%clk 0:02:54.3]} 4... Bc5 {[%clk 0:02:37.8]} 5. O-O {[%clk 0:02:53.5]} 5...
Nd4 {[%clk 0:02:37.6]} 6. Nxd4 {[%clk 0:02:53.7]} 6... Bxd4 {[%clk 0:02:39.5]}
7. c3 {[%clk 0:02:55.3]} 7... Bb6 {[%clk 0:02:38.8]} 8. Ba4 {[%clk 0:02:55.4]}
8... c6 {[%clk 0:02:35.4]} 9. Kh1 {[%clk 0:02:53.7]} 9... h6 {[%clk 0:02:31.5]}
10. h3 {[%clk 0:02:52.6]} 10... d6 {[%clk 0:02:30.5]} 11. Nd2 {[%clk 0:02:52]}
11... O-O {[%clk 0:02:26.2]} 12. Nc4 {[%clk 0:02:48.2]} 12... Bc7 {[%clk
0:02:26]} 13. Bc2 {[%clk 0:02:46.6]} 13... d5 {[%clk 0:02:06.8]} 14. Nd2 {[%clk
0:02:45.7]} 14... Be6 {[%clk 0:02:05.4]} 15. Qe2 {[%clk 0:02:44.2]} 15... Qd7
{[%clk 0:02:04.4]} 16. Qf3 {[%clk 0:02:19.8]} 16... Rad8 {[%clk 0:01:55]} 17.
Nb3 {[%clk 0:02:19.9]} 17... b6 {[%clk 0:01:53.6]} 18. Bxh6 {[%clk 0:02:16.3]}
18... Nxe4 {[%clk 0:01:53.6]} 19. dxe4 {[%clk 0:02:14.3]} 19... gxh6 {[%clk
0:01:49.7]} 20. Qh5 {[%clk 0:02:04.1]} 20... Kg7 {[%clk 0:01:44.8]} 21. Rad1
{[%clk 0:01:56.6]} 21... f6 {[%clk 0:01:40.6]} 22. Rd3 {[%clk 0:01:50.2]} 22...
Rh8 {[%clk 0:01:25.9]} 23. Rg3+ {[%clk 0:01:49.5]} 23... Kf8 {[%clk 0:01:25.9]}
24. exd5 {[%clk 0:01:37]} 24... cxd5 {[%clk 0:01:15.1]} 25. Rg6 {[%clk
0:01:22.3]} 25... Qf7 {[%clk 0:01:04.9]} 26. Qh4 {[%clk 0:01:19.5]} 26... Ke7
{[%clk 0:01:00.7]} 27. Re1 {[%clk 0:01:03.5]} 27... Rdg8 {[%clk 0:00:56.6]} 28.
Rxh6 {[%clk 0:00:52.6]} 28... Qg7 {[%clk 0:00:54.4]} 29. Rg6 {[%clk 0:00:41.3]}
29... Rxh4 {[%clk 0:00:53.3]} 30. Rxg7+ {[%clk 0:00:42.8]} 30... Rxg7 {[%clk
0:00:55.2]} 0-1